Cogmind - Beta 14 --- EXPLORER MODE // 2024.09.20 @ 15:41:51 // Winter2022/Polymind Player: JustYourOrdinaryPerson Result: Self-destructed Performance ------------- Evolutions (2) 1000 Regions Visited (4) 800 Robots Destroyed (4) 20 Value Destroyed (91) 91 Prototype IDs (0) 0 Alien Tech Used (0) 0 Bonus (1595) 1595 TOTAL SCORE: 3406 Bonus ------- Polymind Skill 1395 Pacifist 200 Cogmind --------- Core Integrity 493/550 Matter 100/100 Energy 50/50 System Corruption 0% Temperature Cool (0) Movement Core (50) Location -8/Materials Parts ------- > --- POWER (1) -------- (None) > --- PROPULSION (2) --- (None) > --- UTILITY (3) ------ Heat Sink > --- WEAPON (2) ------- (None) > --- INVENTORY (1) ---- (None) Peak State ------------ > --- POWER ------------ Improved Ion Engine > --- PROPULSION ------- Light Treads Light Treads > --- UTILITY ---------- Heat Sink Heat Sink Light Armor Plating > --- WEAPON ----------- Beam Rifle Heavy Assault Rifle > --- INVENTORY -------- (None) [Rating: 11] Favorites ----------- Power Improved Ion Engine Engine Improved Ion Engine Propulsion Wheel Treads Light Treads Wheel Wheel Utility Heat Sink Device Heat Sink Storage Medium Matter Pod Protection Light Armor Plating Weapon Beam Rifle Energy Gun Beam Rifle Ballistic Gun Heavy Assault Rifle Build | -11 -10 -10 -9 -8 ------- Run | Yrd Mat Min Mat Mat Slots Evolved . | . . . . . Power . | . . . . . Propulsion . | . . . . . Utility . | . . . . . Weapon . | . . . . . Parts Attached . | . . . . . Power . | . . . . . Engine . | . . . . . Core . | . . . . . Reactor . | . . . . . Propulsion . | . . . . . Treads . | . . . . . Leg . | . . . . . Wheel . | . . . . . Hover . | . . . . . Flight . | . . . . . Utility . | . . . . . Device . | . . . . . Storage . | . . . . . Processor . | . . . . . Hackware . | . . . . . Protection . | . . . . . Artifact . | . . . . . Weapon . | . . . . . Energy Gun . | . . . . . Energy Cannon . | . . . . . Ballistic Gun . | . . . . . Ballistic Cannon . | . . . . . Launcher . | . . . . . Special Weapon . | . . . . . Impact Weapon . | . . . . . Slashing Weapon . | . . . . . Piercing Weapon . | . . . . . Special Melee Weapon . | . . . . . Unidentified Prototypes . | . . . . . Parts Lost 9 | . . . 9 . Power 2 | . . . 2 . Propulsion 3 | . . . 3 . Utility 3 | . . . 3 . Weapon 1 | . . . 1 . Highest Loss Streak 4 | . . . 4 . To Critical Strikes . | . . . . . Average Slot Usage (%) 54 | . . 64 75 12 Engine 9 | . . 16 12 . Treads 7 | . . . 12 . Wheel 12 | . . 32 13 . Device 9 | . . . 12 12 Storage 6 | . . 16 7 . Protection 3 | . . . 5 . Energy Gun 3 | . . . 6 . Ballistic Gun 3 | . . . 5 . Peak Build Rating 11 | . . 4 11 1 Average Rating 4 | . . 3 6 1 On Entrance 1 | . . . 4 1 Naked Turns 55 | . 32 21 2 . Heaviest Build 18 | . . 5 18 1 Greatest Support 40 | 3 3 20 40 3 Greatest Overweight (x) 3 | . . . 3 . Average Overweight (x) . | . . . . . Largest Inventory Capacity 1 | . . 1 1 1 Average Capacity . | . . . . 1 Most Carried . | . . . . . Average Carried . | . . . . . Final Capacity 1 | . . 1 1 1 Final Carried . | . . . . . Class Distribution -------------------- 60% | Sentry 31% | Worker 7% | Cogmind Dominant Class ---------------- Cogmind | -10/Materials Worker | -10/Mines Sentry | -9/Materials Sentry | -8/Materials Resources | -11 -10 -10 -9 -8 ----------- Run | Yrd Mat Min Mat Mat Matter Collected 54 | . . . 54 . Remotely . | . . . . . Salvage Created 307 | . . . 307 . Parts 8 | . . . 8 . Haulers Intercepted . | . . . . . Recyclers Shooed 1 | . . . 1 . Parts Field Recycled . | . . . . . Retrieved Matter . | . . . . . Parts Self-Destructed . | . . . . . Prevented . | . . . . . Kills | -11 -10 -10 -9 -8 ------- Run | Yrd Mat Min Mat Mat Combat Hostiles Destroyed 2 | . . . 2 . Guns 2 | . . . 2 . Classes Destroyed 3 | . . . 3 . Recycler 2 | . . . 2 . Grunt 1 | . . . 1 . Sentry 1 | . . . 1 . Best Kill Streak 3 | . . . 3 . Combat Bots Only 2 | . . . 2 . Max Kills in Single Turn 1 | . . . 1 . Gunslinging . | . . . . . Exploded . | . . . . . Melee . | . . . . . Uniques/NPCs Destroyed . | . . . . . Combat | -11 -10 -10 -9 -8 -------- Run | Yrd Mat Min Mat Mat Hostile Shots Fired 195 | . . . 189 6 Missed 42 | . . . 42 . Damage Taken 1278 | . 49 . 1172 57 Core 494 | . 49 . 388 57 Absorbed by Shields . | . . . . . Ignored by Resistances 801 | . 33 . 733 35 Core Remaining (%) 61 | 100 . 80 3 . Volleys Fired 8 | . . . 8 . Largest 2 | . . . 2 . Hottest 79 | . . . 79 . Shots Fired 16 | . . . 16 . Gun 16 | . . . 16 . Cannon . | . . . . . Launcher . | . . . . . Special . | . . . . . Kinetic 8 | . . . 8 . Thermal 8 | . . . 8 . Explosive . | . . . . . Electromagnetic . | . . . . . Robot Hit Streak 13 | . . . 13 . Robot Miss Streak 1 | . . . 1 . Penetration Max . | . . . . . Secondary Targets . | . . . . . Shots Hit Robots 13 | . . . 13 . Core Hits 8 | . . . 8 . Critical Kills . | . . . . . Critical Parts Destroyed . | . . . . . Critical Strikes 1 | . . . 1 . Burn 1 | . . . 1 . Melee Attacks . | . . . . . Impact . | . . . . . Slashing . | . . . . . Piercing . | . . . . . Sneak Attacks . | . . . . . Combat Hostiles . | . . . . . Follow-up Attacks . | . . . . . Damage Inflicted 250 | . . . 250 . Guns 201 | . . . 201 . Cannons . | . . . . . Explosions . | . . . . . Melee . | . . . . . Ramming 49 | . . . 49 . Kinetic 96 | . . . 96 . Thermal 105 | . . . 105 . Explosive . | . . . . . Electromagnetic . | . . . . . Impact . | . . . . . Slashing . | . . . . . Piercing . | . . . . . Highest Corruption . | . . . . . Average Corruption . | . . . . . Corruption Purged . | . . . . . Corruption Blocked . | . . . . . Overload Shots . | . . . . . Overflow Damage . | . . . . . Projectiles . | . . . . . Explosions . | . . . . . Melee . | . . . . . Knockbacks . | . . . . . Impact . | . . . . . Kinetic . | . . . . . Secondary . | . . . . . Self-Inflicted Damage 15 | . . . 15 . Shots . | . . . . . Rammed 13 | . . . 13 . Targets Rammed 14 | . . . 14 . Kicked . | . . . . . Crushed 1 | . . . 1 . Highest Temperature 63 | . . . 63 . Average Temperature 33 | . . . 33 . Received Heat Transfer 549 | . . . 522 27 Siege Activations . | . . . . . Robots Corrupted . | . . . . . Combat Hostiles . | . . . . . Parts Fried . | . . . . . Impact Corruptions . | . . . . . Robots Melted . | . . . . . Combat Hostiles . | . . . . . Parts Melted . | . . . . . Heat Transferred 333 | . . . 333 . Parts Sabotaged . | . . . . . Parts Stolen . | . . . . . Parts Stripped . | . . . . . Power Chain Reactions . | . . . . . Alert | -11 -10 -10 -9 -8 ------- Run | Yrd Mat Min Mat Mat Peak Influence 330 | . 15 4 330 114 Initial 99 | . . 4 . 99 Average 106 | . 11 3 145 99 Maximum Alert Level 1 | . . . 1 . Low Security (%) 87 | 100 100 100 77 100 Level 1 12 | . . . 22 . Level 2 . | . . . . . Level 3 . | . . . . . Level 4 . | . . . . . Level 5 . | . . . . . High Security . | . . . . . Max Security . | . . . . . Squads Dispatched 1 | . . . 1 . Investigation . | . . . . . Extermination . | . . . . . Reinforcement 1 | . . . 1 . Assault . | . . . . . Garrison . | . . . . . Intercept . | . . . . . Searches Triggered . | . . . . . Construction Impeded . | . . . . . Haulers Reinforced . | . . . . . Active Scanning Responses . | . . . . . Cargo Convoy Interrupts . | . . . . . Stealth | -11 -10 -10 -9 -8 --------- Run | Yrd Mat Min Mat Mat Distress Signals 3 | . 1 . 2 . Communications Jammed . | . . . . . Distress Signals . | . . . . . Times Spotted 27 | . 1 . 25 1 Peak Tracking Total 18 | . 3 . 18 1 Tactical Retreats 3 | . . . 3 . Traps | -11 -10 -10 -9 -8 ------- Run | Yrd Mat Min Mat Mat Traps Triggered 1 | . 1 . . . Indirectly . | . . . . . Trap Hack Attempts . | . . . . . Triggered . | . . . . . Disarmed . | . . . . . Reprogrammed . | . . . . . Reused . | . . . . . Traps Extracted . | . . . . . Installed . | . . . . . Triggered . | . . . . . Machines | -11 -10 -10 -9 -8 ---------- Run | Yrd Mat Min Mat Mat Machines Disabled . | . . . . . Max in Single Turn . | . . . . . Machines Repaired . | . . . . . Machines Dismantled . | . . . . . Machines Sabotaged . | . . . . . Overloaded Fab Kills . | . . . . . Hacking | -11 -10 -10 -9 -8 --------- Run | Yrd Mat Min Mat Mat Machines Accessed . | . . . . . Terminals . | . . . . . Fabricators . | . . . . . Repair Stations . | . . . . . Recycling Units . | . . . . . Scanalyzers . | . . . . . Garrison Access . | . . . . . Total Hacks . | . . . . . Successful . | . . . . . Failed . | . . . . . Catastrophic . | . . . . . Database Lockouts . | . . . . . Manual . | . . . . . Terminals . | . . . . . Fabricators . | . . . . . Repair Stations . | . . . . . Recycling Units . | . . . . . Scanalyzers . | . . . . . Garrison Access . | . . . . . Terminal Hacks . | . . . . . Fabricator Hacks . | . . . . . Repair Station Hacks . | . . . . . Recycling Unit Hacks . | . . . . . Scanalyzer . | . . . . . Garrison Access Hacks . | . . . . . Unauthorized Hacks . | . . . . . Terminals . | . . . . . Fabricators . | . . . . . Repair Stations . | . . . . . Recycling Units . | . . . . . Scanalyzers . | . . . . . Garrison Access . | . . . . . Data Cores Recovered . | . . . . . Used . | . . . . . Hacking Detections . | . . . . . Full Trace Events . | . . . . . Feedback Events . | . . . . . Feedback Blocked . | . . . . . Robot Schematics Acquired . | . . . . . Robots Built . | . . . . . Authchips . | . . . . . Time . | . . . . . Total Robot Build Rating . | . . . . . Part Schematics Acquired . | . . . . . Parts Built . | . . . . . Authchips . | . . . . . Time . | . . . . . Total Part Build Rating . | . . . . . Parts Repaired . | . . . . . Time . | . . . . . Parts Recycled . | . . . . . Recycled Matter . | . . . . . Retrieved Matter . | . . . . . Retrieved Components . | . . . . . Parts Scanalyzed . | . . . . . Part Schematics Acquired . | . . . . . Parts Damaged . | . . . . . Bothacking | -11 -10 -10 -9 -8 ------------ Run | Yrd Mat Min Mat Mat Used RIF Installer . | . . . . . Robots Hacked 1 | . . . 1 . Non-combat . | . . . . . Combat 1 | . . . 1 . Robot Hacks Applied 1 | . . . 1 . find_shortcuts 1 | . . . 1 . Relay Couplers Released . | . . . . . Fabnet Peak Effective % . | . . . . . Robots Rewired . | . . . . . Allies Hacked . | . . . . . Hacks Repelled . | . . . . . Allies | -11 -10 -10 -9 -8 -------- Run | Yrd Mat Min Mat Mat Total Allies . | . . . . . Largest Group . | . . . . . Highest-Rated Group . | . . . . . Highest-Rated Ally . | . . . . . Total Orders . | . . . . . Ally Attacks . | . . . . . Total Damage . | . . . . . Kills . | . . . . . Allies Corrupted . | . . . . . Allies Melted . | . . . . . Intel | -11 -10 -10 -9 -8 ------- Run | Yrd Mat Min Mat Mat Robot Analysis Total 2 | . . 1 1 . Derelict Logs Recovered . | . . . . . Drone Launches . | . . . . . Drone Recoveries . | . . . . . Exploration | -11 -10 -10 -9 -8 ------------- Run | Yrd Mat Min Mat Mat Turns Passed 724 | 11 32 100 399 182 Spaces Moved 609 | 22 63 118 358 48 Core 251 | 22 63 34 84 48 Treads 106 | . . . 106 . Legs . | . . . . . Wheels 252 | . . 84 168 . Hover . | . . . . . Flight . | . . . . . Fastest Speed 50 | 50 50 50 50 50 Average Speed 83 | 50 50 71 99 50 Slowest Speed 200 | 50 50 80 200 50 Overloaded Moves . | . . . . . Propulsion Burnouts . | . . . . . Robots Hopped . | . . . . . Cave-ins Triggered . | . . . . . Exploration Rate (%) 19 | 3 22 20 42 10 Regions Visited 4 Branch Regions 1 Pre-discovered Areas . | . . . . . Known Exits Taken 4 | 1 1 1 1 . Unknown Exits Taken . | . . . . . Scrap Searched . | . . . . . Spaces Dug . | . . . . . Terrain Destroyed . | . . . . . Melee . | . . . . . Projectile . | . . . . . AOE . | . . . . . Terrain Rammed . | . . . . . Walls Destroyed . | . . . . . Machines Disabled . | . . . . . Actions | -11 -10 -10 -9 -8 --------- Run | Yrd Mat Min Mat Mat Total 801 | 21 62 133 380 205 Wait 174 | . . 16 1 157 Move 605 | 21 62 117 357 48 Hop . | . . . . . Pick Up . | . . . . . Fast Attach . | . . . . . Attach . | . . . . . Detach . | . . . . . Swap . | . . . . . Drop . | . . . . . Fire 8 | . . . 8 . Melee . | . . . . . Ram 7 | . . . 7 . Kick . | . . . . . Crush 7 | . . . 7 . Escape Stasis . | . . . . . Rewire . | . . . . . Trap . | . . . . . Miscellaneous . | . . . . . Route ------- -11/Scrapyard -10/Materials -10/Mines -9/Materials -8/Materials History --------- Turn | Location | Event 5 | -11/Scrapyard | Identified exit to Materials 5 | -11/Scrapyard | Discovered exit to Materials (range 13) 12 | -11/Scrapyard | Entered Materials 34 | -10/Materials | Identified exit to Mines 34 | -10/Materials | Discovered exit to Mines (range 11) 44 | -10/Materials | Entered Mines 131 | -10/Mines | Assembled infested the area 131 | -10/Mines | Identified exit to Materials 131 | -10/Mines | Discovered exit to Materials (range 12) 144 | -10/Mines | Entered Materials 320 | -9/Materials | Lost 4 parts (1p2n1u) 422 | -9/Materials | Core integrity fell below 50% 511 | -9/Materials | Core integrity fell below 20% 539 | -9/Materials | Lost 4 parts (1p1n1u1w) 539 | -9/Materials | Identified exit to Materials 539 | -9/Materials | Discovered exit to Materials (range 7) 543 | -9/Materials | Entered another Materials area 725 | -8/Materials | Self-destructed Last Messages --------------- 00473_ K-01 Serf collects debris. 00475_ K-01 Serf cleans the Hadron Collector. 00476_ K-01 Serf collects debris. 00479_ Lgt. Armor Plating destroyed. 00480_ K-01 Serf collects debris. 00480_ R-06 Scavenger collects Com. Wheel. 00491_ Lgt. Treads severed. 00492_ L-31 Rogue suffers critical hit (Burn). 00495_ Lgt. Treads destroyed. 00505_ Beam Rifle severed. 00506_ R-06 Scavenger collects Beam Rifle. 00508_ Imp. Ion Engine destroyed. 00519_ Slammed into A-02 Transporter. 00521_ Destabilizing: System interference. 00521_ Heat Sink temporarily disabled. 00522_ Slammed into A-02 Transporter. 00539_ EXIT=FOUND: MATERIALS [Achievement: Close Call] LOCATION=MATERIALS GOAL=ESCAPE Map ----- +----------------------------------------------------+ | ???????????????????????????# #?????????????????? | | ???????????????????????????# #?????????????????? | | ???????????????????????????# #?????????????????? | | ???????????????????????????# #?????????????????? | | ???????????????????????????# #?????????????????? | | ???????????????????????????# #?????????????????? | | ???????????????????????????+ #?????????????????? | | ???????????????????????????# #?????????????????? | | ???????????????????????????# #?????????????????? | | ????????????????############ ##????????????????? | | ????????????????# # ##########/#?????? | | ????????????????# # ?????? | | ????????????????# """ + T ?????? | | ????????????????# """ # ?????? | | ????????????????# """ # ###### ####??????? | | ????????????????# ###+########???????????? | | ????????????????# #?# #???????????? | | ????????????????# #?# """ #???????????? | | ????????????????###########?# """ #???????????? | | ????????????????????????????# * """ =#???????????? | | ????????????????????????????# #???????????? | | ????????????????????????????#= #???????????? | | ????????????????????????????# #???????????? | | ????????????????????????????# "T" #???######??? | | ????????????????????????###?# """ #? ??? | | ????????????????????????#Y#######+#### ? | | ????????????????????????#Y ! # ? | | ????????????????????????# # ? | | ????????????????????????# # """ ? | | ????????????????????????# "T" + "Y" #####?? | | ????????????????????????# """ # " " #?????? | | ????????????????????????# # #?????? | | ????????????????????????######## #?????? | | ???????????????????????????????# """ #?????? | | ???????????????????????????????# """ #?????? | | ???????????????????????????????# """?????????? | | ???????????????????????????????# ?????????? | | ???????????????????????????????# ????????? | | ???????????????????????????????# """ ????????? | | ???????????????????????????????? """ ????????? | | ???????????????????????????????? ""??????????? | | ???????????????????????????????? ???????????? | | ???????????????????????????????? ????????????? | | ????????????????????????????????# #??????????????? | | ?????????????????????????????????????????????????? | | ?????????????????????????????????????????????????? | | ?????????????????????????????????????????????????? | | ?????????????????????????????????????????????????? | | ?????????????????????????????????????????????????? | | ?????????????????????????????????????????????????? | +----------------------------------------------------+ Best States ------------- Heat Dissipation 36 Energy Generation 17 Energy Capacity 215 Matter Stores 100 Matter Capacity 125 Sight Range 16 Terrain Scan Density 10 Armor Coverage 150 Resistance: KI 35 Resistance: TH 35 Resistance: EX 85 Resistance: EM 35 Resistance: I 60 Resistance: S 35 Resistance: P 35 Evasion (%) 50 Recoil Reduction 2 Offensive Hacking 20 Item Schematics ----------------- None Robot Schematics ------------------ None Fabricated ------------ Nothing Alien Tech Used ----------------- None Achievements -------------- Close Call Challenges ------------ None Polymind | -11 -10 -10 -9 -8 ---------- Run | Yrd Mat Min Mat Mat Hosts 2 | . . 1 1 . Combat Hostiles 1 | . . . 1 . Allies . | . . . . . Unique Host Classes 2 | . . 1 1 . Average Host Suspicion 68 | . . 4 80 69 Unsuspicious Activity 492 | . . 65 270 157 Returns to Shadow . | . . . . . Fuzzy Dispatches . | . . . . . Protomatter Created 15 | . . 15 . . Used 28 | . . 5 23 . Decayed . | . . . . . Highest Spend 23 | . . 5 23 . Top 5 Hosts by Kills: Y-45 Defender (-9/Materials: 2) Game ------ Seed SmartbombTransportDatajack Manual? 0 Play Time 00:12:04 Cumulative 7.1 hours Start 2024.09.20 @ 15:19:52 End 2024.09.20 @ 15:41:51 Sessions 1 Manual Loads 0 Difficulty Explorer Special Mode Winter2022/Polymind Game No. 16 Rogue 1 Adventurer 0 Explorer 15 Win Type - Total 0 Types 0/0/0/0/0/0/0/0/0 Lore% 8 Gallery% 12 Achievement% 15 Wizard Run 0 Options --------- Layout 0 ASCII 0 Keyboard 0 Movement Numpad Keybinds 0 Fullscreen 2 Font 18/SmallcapsGlow Map View 76x50 Zoom Use 0% Tactical HUD 1 Map Filters NONE Filters NONE Steam 0 RUN: e1e6ce75-dbf0-403c-95aa-4da4356b125f